bitfinex/quotes_ETHUSD_20240719
["timestamp","ask_amount","ask_price","bid_price","bid_amount"]
[1721409705596,1.49292343,3502.2,3501.3,1.11784623]
[1721409706479,0.29850817,3502.3,3501.3,1.11784623]
[1721409706480,1.7914316,3502.3,3501.3,1.11784623]
[1721409706714,1.7914316,3502.3,3501.4,0.62042462]
[1721409706919,1.7914316,3502.3,3501.5,0.55]
[1721409707134,1.49292343,3502.2,3501.3,0.55]
[1721409707342,1.49292343,3502.1,3501.3,0.55]
[1721409707826,3.29850817,3502.3,3501.3,0.55]
[1721409707996,0.29850817,3502.3,3501.3,0.55]
[1721409708199,1.49382196,3502.1,3501.3,1.11364]
[1721409708515,1.49382196,3502.0,3501.3,1.11364]
[1721409708883,1.49382196,3502.0,3501.3,0.55]
[1721409709186,1.49382196,3501.9,3501.3,0.55]
[1721409709414,1.49382196,3501.9,3501.4,0.04204635]
[1721409709783,1.49382196,3501.9,3501.3,0.55]
[1721409709979,3.29850817,3502.3,3501.3,0.55]
[1721409709980,1.49382196,3501.8,3501.4,0.04204635]
[1721409710184,1.49382196,3501.8,3501.3,0.55]
[1721409710386,1.49382196,3501.9,3501.3,0.83414]
[1721409710620,1.49382196,3501.8,3501.4,0.04204635]
[1721409711034,1.49382196,3501.9,3501.3,0.83414]
[1721409711327,1.49382196,3501.9,3501.4,0.04204635]
[1721409711508,1.49382196,3501.8,3501.4,0.04204635]
[1721409711818,1.49382196,3501.8,3501.3,0.83414]
[1721409712188,1.49382196,3501.9,3501.4,0.04204635]
[1721409712505,1.49382196,3501.8,3501.3,0.55]
[1721409712682,1.64320416,3501.8,3500.9,2.3599]
[1721409712879,1.49382196,3501.7,3501.4,0.04197793]
[1721409713130,1.49382196,3501.7,3501.0,0.55]
[1721409713489,1.49382196,3501.7,3501.1,0.04202575]
[1721409714386,0.29856478,3502.1,3501.1,0.04202575]
[1721409714586,1.4959786,3501.6,3501.1,0.04202575]
[1721409714891,1.4959786,3501.7,3501.1,0.04202575]
[1721409715236,1.4959786,3501.6,3501.1,0.04202575]
[1721409715647,1.4959786,3501.5,3501.1,0.04202575]
[1721409715927,1.4959786,3501.4,3501.1,0.04202575]
[1721409716125,1.4959786,3501.5,3501.1,0.04202575]
[1721409716623,1.79517432,3501.9,3501.1,0.04202575]
[1721409716624,1.4959786,3501.6,3501.1,0.04202575]
[1721409716781,1.4959786,3501.7,3501.1,0.04202575]
[1721409717186,1.4959786,3501.6,3501.1,0.04202575]
[1721409717927,1.49614458,3501.6,3501.1,0.04202575]
[1721409718226,0.29856478,3502.1,3501.1,0.04202575]
[1721409718227,1.49622814,3501.5,3501.1,0.04202575]
[1721409719422,1.49622814,3501.4,3501.1,0.04202575]
[1721409720774,2.37003588,3502.0,3501.1,0.04202575]
[1721409720775,1.49641356,3501.3,3501.1,0.04202575]
[1721409720978,1.79569627,3501.3,3501.1,0.04202575]
[1721409721160,1.9752659,3501.2,3500.6,7.39]
[1721409721342,1.49653961,3501.1,3500.6,7.39]
[1721409721538,1.49653961,3501.1,3500.7,0.04214794]
[1721409721745,1.49653961,3501.0,3500.7,0.04214794]
[1721409722165,1.49653961,3500.9,3500.7,0.04214794]
[1721409722577,1.49653961,3500.8,3500.7,0.04214794]
[1721409722775,0.32922359,3500.8,3500.1,7.39]
[1721409723007,0.32922359,3500.8,3500.7,0.04217131]
[1721409723292,0.32922359,3500.8,3499.7,2.4253]
[1721409723591,1.49640768,3500.4,3499.7,2.4253]
[1721409723773,1.49640768,3500.4,3499.8,0.04236662]
[1721409723984,1.49640768,3500.3,3499.8,0.04236662]
[1721409724150,1.49640768,3500.4,3499.8,0.04236662]
[1721409724344,1.49640768,3500.5,3499.8,1.30763328]
[1721409724810,1.49640768,3500.5,3499.9,0.55]
[1721409725275,1.49640768,3500.5,3500.0,0.04250331]
[1721409726415,1.49543424,3500.5,3500.0,0.04250331]
[1721409726651,1.79411099,3500.8,3500.4,2.3099]
[1721409726802,1.49543424,3501.2,3500.5,0.55]
[1721409727110,1.49543424,3501.1,3500.5,0.5924219]
[1721409727302,2.2939,3501.9,3500.5,0.0424219]
[1721409727303,1.49543424,3501.0,3500.5,0.0424219]
[1721409727818,1.49543424,3501.0,3500.0,2.2968]
[1721409728026,1.49543424,3501.0,3500.6,0.04237756]
[1721409728180,1.49543424,3500.9,3500.1,0.55]
[1721409728384,1.49543424,3500.9,3500.7,0.04236162]
[1721409728385,1.49543424,3500.8,3500.7,0.04236162]
[1721409728577,1.49543424,3500.8,3500.1,0.55]
[1721409729122,1.49543424,3500.9,3500.2,0.04244135]
[1721409729280,2.12351662,3501.2,3500.2,0.04244135]
[1721409729281,0.32899553,3501.2,3500.2,0.04244135]
[1721409729481,1.49541042,3500.8,3500.2,0.04244135]
[1721409729695,1.7944925,3501.2,3500.2,0.04244135]
[1721409729696,1.49541042,3500.9,3500.2,0.04244135]
[1721409729933,1.49539291,3500.9,3500.2,0.04244135]
[1721409731443,1.49539291,3501.0,3500.3,5.2412]
[1721409731653,1.49539291,3501.4,3500.4,0.55]
[1721409731797,1.49539291,3501.5,3500.5,0.58336413]
[1721409731998,1.49539291,3501.6,3500.6,0.55]
[1721409732201,1.49539291,3501.6,3500.6,0.59237756]
[1721409732416,2.88751347,3502.0,3500.6,0.59237756]
[1721409732626,1.49513513,3501.7,3500.6,0.59237756]
[1721409732822,1.49513513,3501.6,3500.6,0.59237756]
[1721409733943,1.49513513,3501.7,3500.6,0.59237756]
[1721409734139,1.49513513,3501.6,3500.6,0.59237756]
[1721409734942,1.49513513,3501.5,3500.6,0.59237756]
[1721409735732,3.0,3501.9,3500.6,1.23407173]
[1721409736018,1.49549517,3501.5,3500.6,0.59237756]
[1721409736252,1.49549517,3501.5,3500.6,0.04237756]
[1721409736605,1.49549517,3501.5,3500.4,0.55]
[1721409736606,1.49549517,3501.5,3500.7,0.04225812]
[1721409737009,1.49549517,3501.5,3500.4,0.55]
[1721409737635,1.49549517,3501.5,3500.5,0.04229001]
[1721409737949,1.49549517,3501.5,3500.6,0.583349]
[1721409738152,1.49549517,3501.5,3500.7,0.55]
[1721409738309,1.49549517,3501.5,3500.7,0.59225812]
[1721409738511,1.49549517,3501.4,3500.7,0.04225812]
[1721409738712,1.49549517,3501.4,3500.8,0.55]
[1721409738957,1.49555762,3501.4,3500.4,0.55]
[1721409739120,1.49555762,3501.4,3500.5,0.57912]
[1721409739311,1.49555762,3501.5,3500.6,0.55]
[1721409739507,3.0,3501.9,3500.6,0.55]
[1721409739736,1.49554926,3501.5,3500.7,0.04225812]
[1721409740010,1.49554926,3501.4,3500.7,0.04225812]
[1721409740210,1.79465911,3501.8,3500.7,0.04225812]
[1721409740211,1.49554926,3501.5,3500.7,0.04225812]
[1721409741207,1.49554926,3501.4,3500.7,0.04225812]
[1721409741646,1.49554926,3501.5,3500.7,0.04225812]
[1721409741809,1.49554926,3501.4,3500.7,0.04225812]
[1721409742249,1.49570898,3501.4,3500.7,0.04225812]
[1721409743655,1.49570898,3501.3,3500.7,0.04225812]
[1721409744408,1.49570898,3501.3,3500.4,0.55]
[1721409744715,1.49570898,3501.3,3500.5,0.04230338]
[1721409745361,0.5563068,3501.6,3500.5,0.04230338]
[1721409745520,0.89156216,3501.6,3500.5,0.04230338]
[1721409745717,1.49612835,3501.1,3500.5,0.04230338]
[1721409746123,1.49612835,3501.1,3500.3,5.2412]
[1721409746639,1.49612835,3501.2,3500.3,5.2412]
[1721409746819,1.49612835,3501.2,3500.4,0.59231932]
[1721409747273,1.82527659,3501.2,3500.4,0.59231932]
[1721409747571,1.49612835,3501.0,3500.4,0.59231932]
[1721409748120,4.09865402,3501.3,3500.4,0.59231932]
[1721409748121,1.49612835,3500.9,3500.4,0.59231932]
[1721409748557,1.49612835,3501.0,3500.4,0.59231932]
[1721409748766,1.49621712,3500.9,3500.4,0.59231932]
[1721409748940,1.49621712,3501.0,3500.4,0.59231932]
[1721409749877,4.09876054,3501.3,3500.4,0.59231932]
[1721409749878,1.49621712,3500.9,3500.4,0.59231932]
[1721409750362,1.64583883,3500.9,3500.4,0.04231932]
[1721409750560,1.49621712,3500.8,3500.4,0.04231932]
[1721409750873,1.49621712,3500.8,3499.9,12.6838]
[1721409751032,1.49621712,3500.8,3500.5,0.04228668]
[1721409751222,1.49621712,3500.8,3500.6,0.04227073]
[1721409751430,0.16458388,3500.7,3500.6,0.04227073]
[1721409752025,0.16458388,3500.7,3500.0,0.55]
[1721409752224,1.49638799,3500.8,3500.6,0.04228743]
[1721409752475,1.49638799,3500.8,3500.0,0.55]
[1721409752476,1.49643607,3500.8,3500.0,0.55]
[1721409752633,1.49643607,3500.9,3500.7,0.04228651]
[1721409752832,1.79572328,3501.3,3500.3,2.795]
[1721409752833,1.49643607,3501.0,3500.4,0.55]
[1721409753029,1.49643607,3501.0,3500.8,0.04227057]
[1721409753338,1.49643607,3501.0,3500.4,0.55]
[1721409753531,1.49643607,3501.2,3500.5,0.3345]
[1721409753726,1.49643607,3501.3,3500.7,2.4817]
[1721409754141,1.49643607,3501.3,3500.8,0.04227057]
[1721409754323,1.49643607,3501.2,3500.8,0.04227057]
[1721409754555,1.49643607,3501.0,3500.8,0.04227057]
[1721409754778,1.49643607,3501.0,3500.4,0.55]
[1721409754779,1.82565201,3501.0,3500.4,0.55]
[1721409754952,0.32921594,3501.0,3500.9,0.04225462]
[1721409755269,1.7959484,3501.2,3500.3,0.55]
[1721409755469,1.7959484,3501.2,3500.9,0.04225462]
[1721409755625,1.7959484,3501.2,3500.3,0.55]
[1721409755825,1.49672451,3500.9,3500.3,0.55]
[1721409756071,1.49672451,3500.9,3500.4,0.04233435]
[1721409756372,1.49672451,3500.9,3500.3,0.55]
[1721409756527,1.49672451,3500.9,3500.5,0.0423184]
[1721409756730,1.49672451,3500.9,3500.3,0.55]
[1721409756922,1.49672451,3500.9,3500.6,0.04230246]
[1721409757127,1.49672451,3500.9,3500.3,0.55]
[1721409757363,1.49672451,3500.9,3500.7,0.04237831]
[1721409757565,1.49672451,3500.8,3500.3,0.55]
[1721409757927,1.49672451,3500.9,3499.9,9.8255]
[1721409758129,1.49672451,3500.7,3500.0,0.55]
[1721409758527,1.49714172,3500.4,3500.0,0.55]
[1721409759200,1.49714172,3500.4,3499.6,2.4355]
[1721409759999,1.49714172,3500.3,3499.6,2.4355]
[1721409760672,1.49714172,3500.4,3499.9,2.795]
[1721409760871,1.49714172,3500.6,3500.3,2.795]
[1721409761090,1.49714172,3500.8,3500.4,2.8005]
[1721409761404,1.49698916,3500.8,3500.4,2.8005]
[1721409761704,1.49698916,3500.9,3500.4,2.8005]
[1721409763069,2.09516931,3501.2,3500.4,2.8005]
[1721409763070,1.49698916,3500.8,3500.4,2.8005]
[1721409764169,1.49698916,3500.8,3500.4,0.55]
[1721409764170,1.64668808,3500.8,3500.4,0.55]
[1721409764534,1.64668808,3500.8,3500.1,0.55]
[1721409764535,0.14969892,3500.8,3500.1,0.55]
[1721409764809,0.29878232,3501.2,3500.1,0.55]
[1721409764810,1.49737207,3500.7,3500.1,0.55]
[1721409765184,1.49737207,3500.8,3500.1,0.55]
[1721409767723,0.29878232,3501.2,3500.7,2.795]
[1721409767893,1.4974896,3501.4,3500.9,2.4868]
[1721409768090,2.3802,3502.0,3501.0,0.55]
[1721409768091,1.4974896,3501.6,3501.0,0.55]
[1721409768410,1.4969091,3501.7,3501.0,0.59096665]
[1721409769210,1.4969091,3501.6,3501.0,0.04096665]
[1721409769392,1.4969091,3501.1,3501.0,0.04096665]
[1721409769585,1.79629092,3501.2,3500.3,7.39]
[1721409769906,1.4972748,3500.7,3499.7,7.39]
[1721409770109,1.4972748,3500.5,3499.5,5.2665]
[1721409770480,1.4972748,3500.4,3499.5,5.2665]
[1721409770710,1.49760024,3500.3,3499.5,5.2665]
[1721409771089,1.79712028,3500.7,3499.5,5.2665]
[1721409771090,1.49760024,3500.4,3499.5,5.2665]
[1721409771292,1.49760024,3500.4,3499.6,0.55]
[1721409772896,1.82707229,3500.4,3499.6,0.55]
[1721409773216,1.49760024,3500.3,3499.6,0.55]
[1721409773594,0.32947205,3500.4,3499.6,0.55]
[1721409773595,1.82707229,3500.4,3499.6,0.55]
[1721409773919,1.8270097,3500.4,3499.6,0.55]
[1721409774320,1.8270097,3500.4,3499.1,7.39]
[1721409774321,1.49753765,3500.1,3499.1,7.39]
[1721409774480,1.49753765,3499.9,3499.1,7.39]
[1721409774677,1.49753765,3499.8,3499.0,2.3353]
[1721409775138,2.3201,3500.3,3498.6,5.1303]
[1721409775139,1.49753765,3499.7,3498.6,5.1303]
[1721409775285,1.49753765,3499.5,3498.6,2.3353]
[1721409775484,1.79704519,3499.9,3498.0,12.26]
[1721409775485,1.49753765,3499.3,3498.0,7.39]
[1721409775796,1.49753765,3498.9,3497.8,2.795]
[1721409776000,1.49753765,3498.8,3497.8,2.795]
[1721409776196,1.49753765,3498.9,3497.8,2.795]
[1721409776724,1.49753765,3499.1,3498.2,2.795]
[1721409776958,1.64584693,3499.0,3498.2,2.795]
[1721409777223,0.14975376,3499.0,3498.2,2.795]
[1721409777424,1.7953118,3499.5,3498.8,2.795]
[1721409777425,1.49609317,3499.5,3498.8,2.795]
[1721409777591,2.4725,3500.0,3498.8,2.795]
[1721409777592,1.49609317,3499.6,3498.8,2.795]
[1721409777789,4.49609317,3499.7,3498.9,0.03868328]
[1721409777991,1.49609317,3499.9,3499.2,2.795]
[1721409778208,1.49609317,3500.2,3499.2,2.795]
[1721409778428,1.49609317,3500.2,3499.3,0.03861944]
[1721409778731,1.49609317,3500.6,3499.8,2.2668]
[1721409778893,1.49609317,3500.7,3499.8,2.2668]
[1721409779093,1.91877226,3501.1,3500.1,2.795]
[1721409779449,2.09453043,3501.7,3501.0,2.795]
[1721409779450,1.49609317,3501.7,3501.0,2.795]
[1721409779732,2.09453043,3502.4,3501.0,2.795]
[1721409779733,1.49609317,3501.8,3501.1,0.55]
[1721409779965,7.47,3502.9,3501.2,2.2887]
[1721409779966,1.49370317,3502.1,3501.2,2.2887]
[1721409780142,7.47,3502.9,3501.3,0.55]
[1721409780143,1.49370317,3502.2,3501.3,0.55]
[1721409780442,1.49370317,3502.2,3501.3,0.58837544]
[1721409780590,0.14937032,3502.1,3501.3,0.58837544]
[1721409780929,1.49370317,3502.6,3501.4,2.85211853]
[1721409781133,1.79244381,3503.0,3501.4,2.85211853]
[1721409781134,1.49370317,3502.7,3501.5,0.55]
[1721409781432,2.09118444,3503.4,3501.5,0.55]
[1721409781433,1.49370317,3502.8,3501.5,0.58834356]
[1721409781728,1.49370317,3502.7,3501.6,2.3614]
[1721409781933,0.17914683,3502.6,3501.7,0.55]
[1721409782293,1.49293902,3502.8,3501.7,0.58808182]
[1721409782502,0.29776514,3502.9,3501.7,0.58808182]
[1721409782701,1.49237111,3503.1,3501.7,0.58808182]
[1721409782893,1.49237111,3503.1,3502.2,2.2709]
[1721409783093,2.24055506,3503.7,3502.2,2.2709]
[1721409783094,1.49237111,3503.3,3502.3,0.55]
[1721409783320,0.14923711,3503.2,3502.3,0.58798622]
[1721409783747,0.1512355,3503.7,3503.1,3.724]
[1721409783811,0.1512355,3503.7,3503.2,0.55]
[1721409783999,0.1512355,3503.7,3503.6,3.724]
[1721409784199,0.1512355,3503.7,3503.6,4.274]
[1721409784417,0.1512355,3503.7,3503.6,4.31134618]
[1721409784700,1.49237111,3505.7,3503.6,4.31134618]
[1721409784902,1.52206769,3505.6,3504.5,3.724]
[1721409785099,4.0284,3506.4,3504.6,0.03620407]
[1721409785100,0.18190335,3505.5,3504.6,0.03620407]
[1721409785320,0.02969658,3505.5,3505.1,3.724]
[1721409785637,0.29637623,3505.7,3505.2,0.58610863]
[1721409786343,0.29637623,3505.7,3505.2,0.03610863]
[1721409786507,0.29637623,3505.7,3503.7,3.0]
[1721409786700,0.29637623,3505.7,3503.8,0.55]
[1721409786916,0.29637623,3505.7,3503.8,1.3119497]
[1721409787151,0.29637623,3505.7,3503.8,0.5845497]
[1721409787309,1.7,3505.6,3503.8,0.5845497]
[1721409787653,0.29637623,3505.7,3503.8,0.0345497]
[1721409787654,1.7,3504.5,3503.8,0.0345497]
[1721409787943,1.7,3504.4,3502.1,3.724]
[1721409788149,1.7,3504.4,3502.2,0.02789105]
[1721409788305,0.17,3504.3,3502.3,0.37518911]
[1721409788741,0.17,3504.3,3502.4,0.0267731]
[1721409789064,0.17,3504.3,3502.1,3.724]
[1721409789405,3.17,3504.3,3502.6,3.724]
[1721409789607,0.17,3504.3,3502.6,3.724]
[1721409789915,0.17,3504.3,3502.7,0.02672531]
[1721409790103,1.7,3504.6,3502.7,0.02672531]
[1721409790629,1.7,3504.6,3502.7,0.57672531]
[1721409790835,3.0,3504.7,3502.7,0.57672531]
[1721409790836,1.7,3504.2,3502.7,0.57672531]
[1721409791141,1.7,3504.4,3502.7,0.57672531]
[1721409791562,3.0,3504.7,3502.7,0.57672531]
[1721409791844,2.3493,3504.8,3502.8,0.43007253]
[1721409791845,0.53493,3504.6,3502.8,0.43007253]
[1721409792048,3.0,3504.7,3502.9,0.55]
[1721409792404,1.7,3504.7,3503.0,0.02667753]
[1721409792618,3.0,3504.7,3503.0,0.02667753]
[1721409792818,3.0,3504.7,3503.0,2.42187753]
[1721409793044,2.3493,3504.8,3503.1,0.55]
[1721409793245,0.23493,3504.7,3503.1,0.89019501]
[1721409793404,3.23493,3504.7,3503.2,0.02664569]
[1721409795325,0.29628105,3504.6,3503.2,0.02664569]
[1721409795528,0.58805111,3504.5,3503.3,0.33120407]
[1721409795853,0.58805111,3504.5,3503.4,0.5777785]
[1721409797143,0.29628105,3504.6,3503.5,0.057082]
[1721409797326,2.3757,3505.5,3503.6,4.274]
[1721409797528,0.29583264,3505.1,3503.6,3.724]
[1721409797815,0.29583264,3505.1,3503.7,0.58237339]
[1721409800736,0.29583264,3505.1,3503.8,2.2865]
[1721409800939,0.29583264,3505.1,3503.9,1.2371491]
[1721409802475,2.4149,3506.2,3504.1,3.724]
[1721409802637,2.4149,3506.2,3504.2,0.55]
[1721409802638,0.29570291,3505.6,3504.2,0.55]
[1721409802834,0.29570291,3505.6,3504.2,0.57781061]
[1721409803046,0.02963587,3506.1,3504.3,0.43018106]
[1721409803249,0.29577611,3505.6,3504.4,0.55]
[1721409803452,0.02963587,3506.1,3504.4,0.58240593]
[1721409803677,0.29567802,3505.6,3504.4,0.58240593]
[1721409804176,0.29575332,3505.6,3504.4,0.58240593]
[1721409804694,3.02963587,3506.1,3505.4,3.724]
[1721409804695,0.02963587,3506.1,3505.4,3.724]
[1721409804876,0.02963587,3506.1,3505.5,3.33984947]
[1721409805200,9.17,3507.4,3505.5,3.31766888]
[1721409805201,0.29559284,3506.4,3505.5,3.31766888]
[1721409806166,0.29559284,3506.4,3505.5,2.94526888]
[1721409806367,0.29559284,3506.4,3505.5,0.03486888]
[1721409806903,0.24559284,3506.4,3505.0,2.4618]
[1721409807094,0.24559284,3506.4,3505.6,0.03461442]
[1721409807390,0.24559284,3506.4,3505.7,0.03805201]
[1721409807591,0.24559284,3506.4,3505.1,0.55]
[1721409807753,0.24559284,3506.4,3505.8,0.03802816]
[1721409807944,0.24559284,3506.4,3505.2,0.30118]
[1721409808150,0.24559284,3506.4,3505.3,0.58814742]
[1721409808625,0.24559284,3506.4,3505.3,0.03814742]
[1721409808955,0.24559284,3506.4,3505.0,2.4618]
[1721409809153,0.24559284,3506.4,3505.4,0.03465779]
[1721409809394,0.24559284,3506.4,3505.5,2.3757]
[1721409809752,0.24559284,3506.4,3505.6,0.03807586]
[1721409810290,0.24559284,3506.4,3505.6,0.58807586]
[1721409810593,0.1512355,3507.1,3505.6,0.58807586]
[1721409810801,0.1512355,3507.1,3505.7,0.29637759]
[1721409810955,0.1512355,3507.1,3505.8,0.55]
[1721409811187,0.1512355,3507.1,3505.9,2.48130432]
[1721409811375,0.1512355,3507.1,3506.0,0.55]
[1721409811904,0.1512355,3507.1,3506.1,0.03795663]
[1721409812834,0.1512355,3507.1,3506.1,0.34108229]
[1721409813124,0.1512355,3507.1,3506.2,0.55]
[1721409813492,0.1512355,3507.1,3506.3,3.76190894]
[1721409813704,0.1512355,3507.1,3506.4,0.55]
[1721409814094,0.1512355,3507.1,3506.5,0.03786126]
[1721409814295,0.1512355,3507.1,3506.7,2.3063]
[1721409814489,0.1512355,3507.1,3506.8,0.55]
[1721409814695,0.1512355,3507.1,3506.8,0.58778975]
[1721409815025,0.1512355,3507.1,3506.8,4.31178975]
[1721409815252,0.005,3507.8,3506.9,8.0093]
[1721409815452,0.005,3507.8,3507.5,3.724]
[1721409815617,0.005,3507.8,3507.6,6.2519]
[1721409815918,0.005,3507.8,3507.6,6.28949912]
[1721409816353,0.005,3507.8,3507.7,2.4008]
[1721409816514,0.005,3507.8,3507.7,11.72050328]
[1721409816709,0.005,3508.3,3508.0,5.4118]
[1721409816938,0.005,3508.3,3508.1,9.9751]
[1721409817145,0.005,3508.3,3508.1,6.2511]
[1721409817463,0.005,3508.3,3508.2,3.4506692]
[1721409817610,0.005,3508.4,3508.2,9.2619]
[1721409817812,0.005,3508.4,3508.3,6.28802566]
[1721409818016,0.005,3508.4,3508.3,8.97782566]
[1721409818511,0.005,3508.4,3508.3,11.98882566]
[1721409820058,0.005,3508.4,3508.3,8.97782566]
[1721409820260,0.005,3508.4,3508.3,8.42782566]
[1721409820427,0.005,3508.4,3508.3,5.7008]
[1721409825729,0.005,3508.4,3508.3,6.2508]
[1721409830159,0.005,3508.4,3508.3,5.7008]
[1721409832165,0.005,3508.4,3508.3,6.2508]
[1721409836628,0.005,3508.4,3508.3,5.7008]
[1721409839975,0.005,3508.4,3508.3,6.82088]
[1721409840184,2.48824055,3509.8,3508.5,3.011]
[1721409840185,0.08854055,3509.8,3508.5,3.011]
[1721409840481,0.08854055,3509.8,3508.7,3.011]
[1721409840613,0.08854055,3509.8,3508.8,6.25]
[1721409840812,0.08854055,3509.8,3508.9,0.625]
[1721409841007,0.08854055,3509.8,3509.0,6.2496]
[1721409841210,0.08854055,3509.8,3509.1,0.05698556]
[1721409841432,0.2054306,3510.6,3509.9,2.84908]
[1721409841633,0.2054306,3510.6,3510.0,6.248]
[1721409842269,0.2054306,3510.6,3510.0,5.698]
[1721409842474,0.2054306,3510.6,3510.1,0.55]
[1721409842687,0.2054306,3510.6,3510.5,3.724]
[1721409842833,0.2054306,3510.6,3510.5,12.9822]
[1721409843232,1.8,3513.1,3510.5,17.0897]
[1721409843233,0.1,3513.1,3510.5,17.0897]
[1721409843463,0.1,3513.1,3511.8,3.011]
[1721409843663,0.1,3513.1,3512.0,3.011]
[1721409843844,0.1,3513.1,3512.1,5.6946]
[1721409844056,0.1,3513.1,3512.2,0.55]
[1721409844771,0.1,3513.1,3512.3,5.6943]
[1721409844772,0.1914118,3512.6,3512.3,5.6943]
[1721409844930,0.1914118,3512.6,3512.4,0.55]
[1721409845778,0.1914118,3512.6,3512.3,5.6943]
[1721409848192,0.1914118,3512.6,3512.4,0.55]
[1721409848477,0.1914118,3512.6,3512.5,8.705]
[1721409848685,0.1914118,3512.6,3512.5,9.255]
[1721409848899,0.1,3513.1,3513.0,3.011]
[1721409849099,0.1,3513.1,3513.0,5.6931]
[1721409849252,0.1512355,3514.1,3513.0,8.084]
[1721409849449,0.1512355,3514.1,3513.0,5.6931]
[1721409849669,0.1512355,3514.1,3513.1,0.05691339]
[1721409849868,0.1512355,3514.1,3513.2,6.26780134]
[1721409850105,0.1512355,3514.1,3513.4,3.011]
[1721409850268,0.1512355,3514.1,3513.6,5.4019]
[1721409850455,0.1512355,3514.1,3513.8,3.011]
[1721409850654,0.1512355,3514.1,3513.2,0.57500134]
[1721409850655,0.1512355,3514.1,3513.9,6.2417]
[1721409850897,0.1512355,3514.1,3513.9,5.6917]
[1721409850898,2.3184,3514.0,3513.9,5.6917]
[1721409851186,4.26536355,3514.0,3513.9,5.6917]
[1721409852197,7.26536355,3514.0,3513.9,5.6917]
[1721409853295,7.26536355,3514.0,3511.0,2.3909]
[1721409853296,1.7,3513.5,3511.0,2.3909]
[1721409853708,1.7,3513.8,3511.1,5.91603549]
[1721409853985,0.72653636,3513.7,3511.3,3.011]
[1721409854187,0.72653636,3513.7,3511.4,0.05692477]
[1721409854416,0.72653636,3513.7,3511.6,3.011]
[1721409854952,0.72653636,3513.7,3511.8,3.011]
[1721409855163,0.72653636,3513.7,3512.0,3.011]
[1721409855421,0.54265364,3513.6,3512.1,3.9171]
[1721409855723,0.1512355,3514.1,3512.1,3.9171]
[1721409855724,2.58481151,3516.3,3514.5,3.011]
[1721409855855,2.58481151,3516.3,3513.3,3.828]
[1721409855856,2.58481151,3516.3,3513.4,2.2772]
[1721409856048,2.58481151,3516.3,3513.5,3.39615]
[1721409856254,0.33241151,3516.3,3513.5,0.55]
[1721409856496,0.33241151,3516.3,3513.5,3.55]
[1721409856657,0.33241151,3516.3,3513.6,0.99413]
[1721409856658,1.7,3516.2,3513.6,0.99413]
[1721409856865,1.7,3516.2,3513.8,3.011]
[1721409857173,1.7,3516.2,3513.7,0.55]
[1721409857174,0.33241151,3516.3,3514.1,5.2723]
[1721409857374,0.33241151,3516.3,3514.3,3.011]
[1721409857581,0.33241151,3516.3,3514.4,9.2409]
[1721409857762,0.33241151,3516.3,3514.5,1.22409]
[1721409857963,0.33241151,3516.3,3514.6,6.2405]
[1721409858164,0.33241151,3516.3,3514.8,3.011]
[1721409858388,0.33241151,3516.3,3515.1,3.828]
[1721409858565,0.33241151,3516.3,3515.2,6.2396]
[1721409859016,0.33241151,3516.3,3515.3,5.2613]
[1721409859209,0.33241151,3516.3,3515.4,6.2393]
[1721409859369,0.33241151,3516.3,3515.5,3.0]
[1721409859584,0.33241151,3516.3,3515.6,6.2389]
[1721409859785,0.33241151,3516.3,3515.7,3.0]
[1721409860122,0.33241151,3516.3,3515.8,6.2386]
[1721409860439,0.33241151,3516.3,3515.8,5.6886]
[1721409864171,0.07840971,3517.5,3515.9,5.3474]
[1721409864373,0.07840971,3517.5,3516.0,5.6883]
[1721409864570,0.07840971,3517.5,3516.1,3.0]
[1721409864818,0.07840971,3517.5,3516.2,6.79157]
[1721409865109,0.07840971,3517.5,3516.3,3.55]
[1721409865322,0.07840971,3517.5,3516.4,5.6876]
[1721409865500,0.07840971,3517.5,3516.5,0.55]
[1721409865812,0.07840971,3517.5,3516.6,5.6873]
[1721409866023,0.07840971,3517.5,3516.7,0.55]
[1721409866376,0.07840971,3517.5,3516.8,5.687]
[1721409867074,0.07840971,3517.5,3516.9,0.55]
[1721409867280,0.07840971,3517.5,3517.0,5.6867]
[1721409867476,0.07840971,3517.5,3517.1,0.60685598]
[1721409867802,0.07840971,3517.5,3517.2,6.42750715]
[1721409868006,0.00243847,3518.0,3517.2,6.42750715]
[1721409868007,0.00243847,3518.0,3517.4,2.4063]
[1721409868208,0.29763396,3520.3,3517.2,6.3706556]
[1721409868209,0.207342,3520.1,3517.6,2.4063]
[1721409868381,0.207342,3520.1,3517.9,1.717]
[1721409868579,0.207342,3520.1,3518.0,6.235]
[1721409868914,0.1512355,3521.1,3518.2,3.011]
[1721409868915,1.7,3521.0,3518.2,3.011]
[1721409869240,0.1512355,3521.1,3518.9,3.011]
[1721409869531,0.1512355,3521.1,3518.3,6.2346]
[1721409869532,0.1512355,3521.1,3519.0,6.2334]
[1721409869678,1.7,3520.9,3519.0,6.2334]
[1721409870300,1.7,3519.7,3519.0,5.12336797]
[1721409871119,3.828,3520.4,3519.0,5.12336797]
[1721409871317,0.5528,3520.3,3519.0,5.12336797]
[1721409871565,1.7,3520.2,3519.0,5.12336797]
[1721409871867,1.7,3519.8,3519.0,5.12336797]
[1721409872216,1.7,3519.4,3519.0,5.12336797]
[1721409873036,3.0,3519.5,3519.0,5.12336797]
[1721409873196,2.4993,3520.7,3519.0,5.12336797]
[1721409873197,0.6828,3519.4,3519.0,5.12336797]
[1721409873397,3.828,3520.2,3519.0,5.12336797]
[1721409873603,1.7,3520.0,3519.0,5.12336797]
[1721409874224,2.4551,3519.3,3519.0,5.12336797]
[1721409874553,5.4551,3519.3,3519.0,5.12336797]
[1721409875036,3.828,3520.2,3519.0,5.12336797]
[1721409875037,3.0,3520.0,3519.0,5.12336797]
[1721409875280,6.2831,3520.2,3519.0,5.12336797]
[1721409875281,0.92831,3519.9,3519.0,5.12336797]
[1721409875744,3.92831,3519.9,3519.0,5.12336797]
[1721409875902,0.92831,3519.9,3519.0,5.12336797]
[1721409876101,3.0,3519.8,3519.0,5.12336797]
[1721409876320,0.92831,3519.9,3519.0,5.12336797]